Cogmind - Beta 16.1 @@@ ROGUE MODE // 2026.04.30 @ 01:10:32 Player: coopco Result: Destroyed by Y-54 Guardian with Flak Gun Performance ------------- Evolutions (0) 0 Regions Visited (3) 600 Robots Destroyed (10) 50 Value Destroyed (214) 214 Prototype IDs (2) 40 Alien Tech Used (0) 0 Bonus (0) 0 TOTAL SCORE: 904 Bonus ------- None Cogmind --------- Core Integrity 0/250 Matter 276/300 Energy 73/125 System Corruption 0% Temperature Hot (224) Movement Walking (190) Ox1 Location -7/Recycling Parts ------- > --- POWER (1) -------- Light Ion Engine > --- PROPULSION (2) --- Aluminum Leg Subdweller Monowheel > --- UTILITY (2) ------ Small Storage Unit Component Analysis Suite > --- WEAPON (2) ------- Heavy Laser > --- INVENTORY (8) ---- Subdweller Power Source Reinforced Deuterium Engine Compact Wheel Medium Laser Heavy Laser Assault Rifle Dirty Datajack (20) Peak State ------------ > --- POWER ------------ Light Ion Engine > --- PROPULSION ------- Aluminum Leg Subdweller Monowheel > --- UTILITY ---------- Small Storage Unit Component Analysis Suite > --- WEAPON ----------- Heavy Laser Heavy Laser > --- INVENTORY -------- Subdweller Power Source Reinforced Deuterium Engine Compact Wheel Medium Laser Heavy Laser Assault Rifle Dirty Datajack [Rating: 18] Favorites ----------- Power Light Ion Engine Engine Light Ion Engine Propulsion Light Treads Treads Light Treads Leg Aluminum Leg Wheel Subdweller Monowheel Utility Small Storage Unit Device Improved Terrain Scanner Storage Small Storage Unit Weapon Medium Laser Energy Gun Medium Laser Ballistic Gun Assault Rifle Build | -11 -10 -10 -7 ------- Run | Yrd Mat Sub Rec Slots Evolved . | . . . . Power . | . . . . Propulsion . | . . . . Utility . | . . . . Weapon . | . . . . Parts Attached 18 | 6 1 5 6 Power 4 | 1 . 2 1 Engine 4 | 1 . 2 1 Core . | . . . . Reactor . | . . . . Propulsion 4 | 2 . 1 1 Treads 2 | 2 . . . Leg 1 | . . . 1 Wheel 1 | . . 1 . Hover . | . . . . Flight . | . . . . Utility 4 | 1 1 . 2 Device 2 | . 1 . 1 Storage 2 | 1 . . 1 Processor . | . . . . Hackware . | . . . . Protection . | . . . . Artifact . | . . . . Weapon 6 | 2 . 2 2 Energy Gun 3 | 1 . . 2 Energy Cannon . | . . . . Ballistic Gun 3 | 1 . 2 . Ballistic Cannon . | . . . . Launcher . | . . . . Special Weapon . | . . . . Impact Weapon . | . . . . Slashing Weapon . | . . . . Piercing Weapon . | . . . . Special Melee Weapon . | . . . . Unidentified Prototypes . | . . . . Parts Lost 8 | . . 7 1 Power 2 | . . 2 . Propulsion 2 | . . 2 . Utility 1 | . . 1 . Weapon 3 | . . 2 1 Highest Loss Streak 6 | . . 6 1 To Critical Strikes . | . . . . Average Backups 7 | 3 5 7 7 Power 1 | . 1 . 1 Propulsion 1 | 1 2 1 . Utility . | . . . . Weapon 3 | 1 2 4 4 Tool/Special . | . . . . Unused Backups 9 | . . 2 7 Power 1 | . . . 1 Propulsion 2 | . . 1 1 Utility . | . . . . Weapon 5 | . . 1 4 Tool/Special 1 | . . . 1 Average Slot Usage (%) 93 | . 100 97 88 Engine 13 | . 14 13 13 Treads 13 | . 28 26 . Leg 4 | . . . 9 Wheel 7 | . . . 14 Device 6 | . 14 13 . Storage 17 | . 14 14 21 Energy Gun 13 | . 14 13 13 Ballistic Gun 14 | . 14 14 14 Peak Build Rating 18 | 6 9 10 18 Average Rating 10 | 5 9 9 12 On Entrance 5 | . 6 9 7 Avg Prop Armor Cover (%) 4 | . . . 4 Naked Turns . | . . . . Heaviest Build 19 | 13 14 14 19 Greatest Support 40 | 40 40 40 20 Greatest Overweight (x) 2 | . . 2 1 Average Overweight (x) . | . . . . Largest Inventory Capacity 8 | 8 8 8 8 Average Capacity 7 | 7 8 8 8 Most Carried 8 | 6 8 8 8 Average Carried 7 | 3 5 7 7 Final Capacity 8 | 8 8 8 8 Final Carried 8 | 6 8 4 7 Class Distribution -------------------- 100% | Mutant Dominant Class ---------------- Mutant | -10/Materials Mutant | -10/Subcaves Mutant | -7/Recycling Resources | -11 -10 -10 -7 ----------- Run | Yrd Mat Sub Rec Matter Collected 423 | 269 . 80 74 Remotely . | . . . . Salvage Created 562 | 100 . 258 204 Parts 24 | 4 . 14 6 Haulers Intercepted . | . . . . Recyclers Shooed . | . . . . Parts Field Recycled . | . . . . Retrieved Matter . | . . . . Parts Self-Destructed 9 | . . 9 . Prevented . | . . . . Parts Restored . | . . . . Kills | -11 -10 -10 -7 ------- Run | Yrd Mat Sub Rec Combat Hostiles Destroyed 8 | . . 8 . Guns 8 | . . 8 . Classes Destroyed 5 | 2 . 3 . Tunneler 1 | 1 . . . Recycler 1 | 1 . . . Swarmer 4 | . . 4 . Grunt 2 | . . 2 . Subdweller 2 | . . 2 . Best Kill Streak 4 | 1 . 4 . Combat Bots Only 4 | . . 4 . Max Kills in Single Turn 1 | 1 . 1 . Gunslinging . | . . . . Exploded . | . . . . Melee . | . . . . Uniques/NPCs Destroyed . | . . . . Combat | -11 -10 -10 -7 -------- Run | Yrd Mat Sub Rec Hostile Shots Fired 189 | . . 153 36 Missed 61 | . . 48 13 Hits 128 | . . 105 23 Projectile 128 | . . 105 23 Critical Strikes 2 | . . 2 . Damage Taken 1166 | . . 1008 158 Core 251 | . . 233 18 Absorbed by Shields . | . . . . Core Remaining (%) 100 | 100 . . . Volleys Fired 60 | 9 . 42 9 Largest 2 | 2 . 2 2 Hottest 138 | 70 . 70 138 Shots Fired 119 | 18 . 83 18 Gun 119 | 18 . 83 18 Cannon . | . . . . Launcher . | . . . . Special . | . . . . Kinetic 58 | 9 . 43 6 Thermal 61 | 9 . 40 12 Explosive . | . . . . Electromagnetic . | . . . . Robot Hit Streak 12 | 4 . 12 5 Robot Miss Streak 4 | 2 . 4 1 Penetration Max . | . . . . Secondary Targets 1 | . . 1 . Max Gunslinging Chain 1 | . . 1 . Shots Hit Robots 79 | 10 . 58 11 Core Hits 29 | 4 . 20 5 Critical Kills . | . . . . Critical Parts Destroyed . | . . . . Critical Strikes 5 | . . 5 . Burn 5 | . . 5 . Melee Attacks . | . . . . Impact . | . . . . Slashing . | . . . . Piercing . | . . . . Sneak Attacks . | . . . . Combat Hostiles . | . . . . Follow-up Attacks . | . . . . Damage Inflicted 918 | 109 . 618 191 Guns 918 | 109 . 618 191 Cannons . | . . . . Explosions . | . . . . Melee . | . . . . Ramming . | . . . . Kinetic 338 | 47 . 253 38 Thermal 580 | 62 . 365 153 Explosive . | . . . . Electromagnetic . | . . . . Impact . | . . . . Slashing . | . . . . Piercing . | . . . . Highest Corruption . | . . . . Average Corruption . | . . . . Corruption Purged . | . . . . Corruption Blocked . | . . . . Overload Shots . | . . . . Overflow Damage . | . . . . Projectiles . | . . . . Explosions . | . . . . Melee . | . . . . Knockbacks . | . . . . Impact . | . . . . Kinetic . | . . . . Secondary . | . . . . Self-Inflicted Damage . | . . . . Shots . | . . . . Rammed . | . . . . Targets Rammed . | . . . . Kicked . | . . . . Crushed . | . . . . Highest Temperature 206 | 80 . 22 206 Average Temperature 33 | 31 . 4 46 Received Heat Transfer 504 | . . 450 54 Siege Activations . | . . . . Martial Activations . | . . . . Shielding Activations . | . . . . Robots Disrupted . | . . . . Combat Hostiles . | . . . . Robots Corrupted . | . . . . Combat Hostiles . | . . . . Parts Fried . | . . . . Impact Corruptions . | . . . . Robots Melted . | . . . . Combat Hostiles . | . . . . Parts Melted 1 | . . 1 . Heat Transferred 1924 | 185 . 1443 296 Parts Sabotaged . | . . . . Parts Stolen . | . . . . Parts Stripped . | . . . . Power Chain Reactions . | . . . . Alert | -11 -10 -10 -7 ------- Run | Yrd Mat Sub Rec Maximum Alert Level . | . . . . Low Security (%) 100 | 100 100 . 100 Level 1 . | . . . . Level 2 . | . . . . Level 3 . | . . . . Level 4 . | . . . . Level 5 . | . . . . High Security . | . . . . Max Security . | . . . . Peak Influence 45 | 5 . . 45 Initial 40 | . . . 40 Average 3 | . . . 4 Influence Increases 266 | 10 . 220 36 Destroy 0b10 Robot/C 120 | . . 120 . Destroy 0b10 Robot/NC 25 | 10 . . 15 Destroy Leader 10 | . . 10 . Successful Hack 21 | . . . 21 Lose Combat Pursuer 90 | . . 90 . Influence Decreases 266 | 10 . 134 122 Entered New Map 46 | . . . 46 Time Decay 160 | 10 . 74 76 Lost Part 60 | . . 60 . Squads Dispatched 1 | . 1 . . Investigation . | . . . . Extermination . | . . . . Reinforcement 1 | . 1 . . Assault . | . . . . Garrison . | . . . . Intercept . | . . . . Searches Triggered . | . . . . Construction Impeded . | . . . . Haulers Reinforced . | . . . . Active Scanning Responses . | . . . . Cargo Convoy Interrupts . | . . . . Stealth | -11 -10 -10 -7 --------- Run | Yrd Mat Sub Rec Distress Signals . | . . . . Communications Jammed . | . . . . Distress Signals . | . . . . Times Spotted 16 | . . 15 1 Peak Tracking Total 6 | . 1 6 1 Tactical Retreats 2 | . . 2 . Traps | -11 -10 -10 -7 ------- Run | Yrd Mat Sub Rec Traps Triggered . | . . . . Indirectly . | . . . . Trap Hack Attempts . | . . . . Triggered . | . . . . Disarmed . | . . . . Reprogrammed . | . . . . Reused . | . . . . Traps Extracted . | . . . . Installed . | . . . . Triggered . | . . . . Machines | -11 -10 -10 -7 ---------- Run | Yrd Mat Sub Rec Machines Disabled 1 | . . 1 . Max in Single Turn 1 | . . 1 . Machines Repaired . | . . . . Machines Dismantled . | . . . . Machines Sabotaged . | . . . . Overloaded Fab Kills . | . . . . Hacking | -11 -10 -10 -7 --------- Run | Yrd Mat Sub Rec Machines Accessed 6 | . 1 . 5 Terminals 5 | . 1 . 4 Fabricators . | . . . . Repair Stations . | . . . . Recycling Units 1 | . . . 1 Scanalyzers . | . . . . Garrison Access . | . . . . Total Hacks 13 | . 2 . 11 Successful 5 | . 1 . 4 Failed 8 | . 1 . 7 Catastrophic 4 | . 1 . 3 Database Lockouts . | . . . . Manual 7 | . 2 . 5 Terminals 12 | . 2 . 10 Fabricators . | . . . . Repair Stations . | . . . . Recycling Units 1 | . . . 1 Scanalyzers . | . . . . Garrison Access . | . . . . Terminal Hacks 3 | . . . 3 Prototype ID Bank 1 | . . . 1 Branch Access Points 1 | . . . 1 Zone Layout 1 | . . . 1 Fabricator Hacks . | . . . . Repair Station Hacks . | . . . . Recycling Unit Hacks 1 | . . . 1 Report Inventory 1 | . . . 1 Scanalyzer . | . . . . Garrison Access Hacks . | . . . . Unauthorized Hacks 1 | . 1 . . Terminals 1 | . 1 . . Assimilate 1 | . 1 . . Fabricators . | . . . . Repair Stations . | . . . . Recycling Units . | . . . . Scanalyzers . | . . . . Garrison Access . | . . . . Data Cores Recovered . | . . . . Used . | . . . . Hacking Detections 5 | . 1 . 4 Full Trace Events . | . . . . Feedback Events . | . . . . Feedback Blocked . | . . . . Robot Schematics Acquired . | . . . . Robots Built . | . . . . Authchips . | . . . . Time . | . . . . Total Robot Build Rating . | . . . . Part Schematics Acquired . | . . . . Parts Built . | . . . . Authchips . | . . . . Time . | . . . . Total Part Build Rating . | . . . . Part Studies Acquired . | . . . . Parts Repaired . | . . . . Time . | . . . . Parts Recycled . | . . . . Recycled Matter . | . . . . Retrieved Matter . | . . . . Retrieved Components . | . . . . Parts Scanalyzed . | . . . . Part Schematics Acquired . | . . . . Parts Damaged . | . . . . Bothacking | -11 -10 -10 -7 ------------ Run | Yrd Mat Sub Rec Used RIF Installer . | . . . . Robots Hacked . | . . . . Non-combat . | . . . . Combat . | . . . . Robot Hacks Applied . | . . . . Relay Couplers Released . | . . . . Fabnet Peak Effective % . | . . . . Robots Rewired . | . . . . Allies Hacked . | . . . . Hacks Repelled . | . . . . Allies | -11 -10 -10 -7 -------- Run | Yrd Mat Sub Rec Total Allies . | . . . . Largest Group . | . . . . Highest-Rated Group . | . . . . Highest-Rated Ally . | . . . . Total Orders . | . . . . Ally Attacks . | . . . . Total Damage . | . . . . Kills . | . . . . Allies Corrupted . | . . . . Allies Melted . | . . . . Intel | -11 -10 -10 -7 ------- Run | Yrd Mat Sub Rec Active Infowar (turns) 617 | . 115 502 . Terrain 617 | . 115 502 . Robot Analysis Total . | . . . . Derelict Logs Recovered 1 | . . 1 . Drone Launches . | . . . . Drone Recoveries . | . . . . Exploration | -11 -10 -10 -7 ------------- Run | Yrd Mat Sub Rec Turns Passed 1462 | 151 115 528 668 Spaces Moved 792 | 76 70 255 391 Core 10 | 9 . 1 . Treads 378 | 67 70 241 . Legs 211 | . . . 211 Wheels 193 | . . 13 180 Hover . | . . . . Flight . | . . . . Fastest Speed 50 | 50 160 110 110 Average Speed 154 | 146 160 157 153 Slowest Speed 190 | 160 160 160 190 Overloaded Moves . | . . . . Propulsion Burnouts . | . . . . Robots Hopped . | . . . . Potential Cave-ins . | . . . . Cave-ins Triggered . | . . . . Exploration Rate (%) 24 | 5 14 21 57 Regions Visited 3 Branch Regions 2 Pre-discovered Areas . | . . . . Known Exits Taken 1 | . . 1 . Unknown Exits Taken 2 | 1 1 . . Scrap Searched . | . . . . Spaces Dug . | . . . . Terrain Destroyed . | . . . . Melee . | . . . . Projectile . | . . . . AOE . | . . . . Terrain Rammed . | . . . . Walls Destroyed . | . . . . Machines Disabled . | . . . . Actions | -11 -10 -10 -7 --------- Run | Yrd Mat Sub Rec Total 919 | 96 73 306 444 Wait 25 | . . . 25 Move 789 | 75 69 254 391 Hop . | . . . . Pick Up 20 | 6 3 3 8 Fast Attach 8 | 6 . . 2 Attach 8 | . 1 5 2 Detach . | . . . . Swap 2 | . . . 2 Drop 7 | . . 2 5 Fire 60 | 9 . 42 9 Melee . | . . . . Ram . | . . . . Kick . | . . . . Crush . | . . . . Escape Stasis . | . . . . Rewire . | . . . . Trap . | . . . . Miscellaneous . | . . . . Route ------- -11/Scrapyard -10/Materials -10/Subcaves -7/Recycling (discovered 1 exit: [*Fac]) History --------- Turn | Location | Event 17 | -11/Scrapyard | Discovered new exit (range 15) 152 | -11/Scrapyard | Entered Materials 198 | -10/Materials | Discovered new exit (range 7) 267 | -10/Materials | Entered Subcaves 277 | -10/Subcaves | Identified exit to Recycling 306 | -10/Subcaves | Build established: Mutant 488 | -10/Subcaves | A swath of the cavern ceiling suddenly collapsed 741 | -10/Subcaves | Core integrity fell below 50% 789 | -10/Subcaves | Core integrity fell below 20% 795 | -10/Subcaves | Entered Recycling 800 | -7/Recycling | Lost 6 parts (1p2n1u2w) 1359 | -7/Recycling | Discovered new exit (range 16) 1463 | -7/Recycling | Destroyed by Y-54 Guardian with Flak Gun Last Messages --------------- 01074_ Acquired Component Analysis Suite. 01076_ R-06 Scavenger collects Hvy. Laser. 01081_ Acquired 63 matter. 01138_ Connecting with Terminal... 01291_ R-06 Scavenger destroyed. 01294_ Acquired 11 matter. 01302_ R-06 Scavenger collects Lgt. Ion Engine. 01319_ R-06 Scavenger destroyed. 01322_ R-06 Scavenger collects Lgt. Ion Engine. 01324_ Dropped Sml. Storage Unit. 01325_ R-06 Scavenger collects Sml. Storage Unit. 01325_ Dropped Mining Laser. 01325_ Acquired Com. Wheel. 01329_ R-06 Scavenger collects Mining Laser. 01356_ R-06 Scavenger inserts Mining Laser into recycling unit. 01359_ EXIT=FOUND 01436_ Y-54 Guardian springs to life. 01463_ Hvy. Laser destroyed. Map ----- +----------------------------------------------------+ | ???????????????????????????????????????????? | | ???????????????????????????????????????????? | | ???????????????????????????????????????????? | | ???????????????????????????????????????????? | | ???????????????????????????????????????????? | | ???????????????????????????????????????????? | | ???????????????????????????????????????????? | | ???????????????????????????????????????????? | | ???????????????????????????????????????????? | | ???????????????????????????????????????????? | | ?????????###???????????????????????????????? | | ??######## #####???????????????????????????? | | ??# #???????????????????????????? | | ??# #???????????????????????????? | | ### ######??????????????????????? | | + + #??????????????????????? | | ### # #??????????????????????? | | #?# # #####??????????????????? | | #?############## #######????????????? | | ############# ### # #????????????? | | # #????????????? | | # #????????????? | | < # """#????????????? | | ### # """#????????????? | | #####+#######???# # """#????????????? | | ????????????????# #@ """#????????????? | | ????????????+ Y """#????????????? | | ????????????######### # #????????????? | | ????????????????????# # """#????????????? | | ????????????????????# # """#????????????? | | ????????????????????# # """#????????????? | | ???????????????????? # """#????????????? | | ??????????????????? # """#????????????? | | ??????????????????# # #????????????? | | ??????????????????# ?#####?????????????? | | ?????????????????? ???????????????????? | | ?????????????????## ???????????????????? | | ??????????????????# ???????????????????? | | ??????????????????# ???????????????????? | | ??????????????????? ???????????????????? | | ????????????????????? ???????????????????? | | ???????????????????????????????????????????? | | ???????????????????????????????????????????? | | ???????????????????????????????????????????? | | ???????????????????????????????????????????? | | ???????????????????????????????????????????? | | ???????????????????????????????????????????? | | ???????????????????????????????????????????? | | ???????????????????????????????????????????? | | ???????????????????????????????????????????? | +----------------------------------------------------+ Best States ------------- Heat Dissipation 25 Energy Generation 15 Energy Capacity 250 Matter Stores 300 Matter Capacity 300 Sight Range 16 Terrain Scan Range 16 Terrain Scan Density 10 Evasion (%) 50 Recoil Reduction 2 Item Schematics ----------------- None Robot Schematics ------------------ None Fabricated ------------ Nothing Repaired ---------- Nothing Studied --------- None Alien Tech Used ----------------- None Achievements -------------- None Challenges ------------ None Game ------ Seed RocketDispersalDoomcannon Manual? 0 Play Time 00:15:15 Cumulative 30.4 hours Start 2026.04.30 @ 00:59:41 End 2026.04.30 @ 01:10:32 Sessions 1 Manual Loads 0 Difficulty Rogue Special Mode None Game No. 34 Rogue 34 Adventurer 0 Explorer 0 Win Type - Total 0 Types 0/0/0/0/0/0/0/0/0/0 Lore% 26 Gallery% 30 Achievement% 27 Wizard Run 0 Options --------- Layout 1 ASCII 0 Keyboard 0 Movement Mouse Keybinds 0 Fullscreen 2 Font 24/Smallcaps Map View 50x35 Zoom Use 0% Tactical HUD 1 Map Filters NONE Filters NONE Steam 1 RUN: 8329131b-7243-44e7-a724-f55dd4a99aa4